bitfinex/quotes_SOLUSD_20241110
["timestamp","ask_amount","ask_price","bid_price","bid_amount"]
[1731254200296,0.1,212.27,212.05,6.4787]
[1731254200497,0.1,212.28,212.06,0.1]
[1731254200916,4.7109,212.27,212.09,11.787]
[1731254201096,26.89241932,212.19,212.11,26.89241932]
[1731254202403,4.7129,212.18,212.11,26.89241932]
[1731254202709,26.89241932,212.17,212.09,38.67941932]
[1731254203310,4.7129,212.18,212.11,26.89241932]
[1731254206720,4.7129,212.18,212.08,26.89241932]
[1731254206721,33.53831932,212.17,212.08,26.89241932]
[1731254207809,33.53831932,212.17,212.05,11.7896]
[1731254207810,33.53831932,212.17,212.1,26.89241932]
[1731254208221,4.7134,212.16,212.1,26.89241932]
[1731254210305,6.6459,212.18,212.1,26.89241932]
[1731254210523,4.7132,212.17,212.1,26.89241932]
[1731254211020,31.60561932,212.17,212.1,26.89241932]
[1731254211224,26.89241932,212.14,212.06,26.89241932]
[1731254211525,26.89241932,212.16,212.08,26.89241932]
[1731254211698,31.60561932,212.17,212.09,26.89241932]
[1731254211901,26.89241932,212.16,212.09,26.89241932]
[1731254212104,26.89241932,212.15,212.08,26.89241932]
[1731254212297,26.89241932,212.14,212.07,26.89241932]
[1731254212525,6.6459,212.18,212.09,26.89241932]
[1731254212526,26.89241932,212.16,212.09,26.89241932]
[1731254212701,4.7132,212.17,212.11,26.89241932]
[1731254213118,6.6459,212.18,212.15,26.89241932]
[1731254213417,11.359,212.18,212.12,26.89241932]
[1731254213622,26.89241932,212.17,212.05,16.5054]
[1731254213809,26.89241932,212.17,212.1,26.89241932]
[1731254214205,26.89241932,212.15,212.05,16.5054]
[1731254214401,4.7138,212.14,212.07,26.89241932]
[1731254215310,26.89241932,212.15,212.07,26.89241932]
[1731254215510,30.0747,212.23,212.14,26.89241932]
[1731254215511,6.5145,212.23,212.14,26.89241932]
[1731254215809,6.5145,212.23,212.16,26.89241932]
[1731254216121,11.2264,212.23,212.09,0.1]
[1731254216318,11.2264,212.23,212.17,26.89241932]
[1731254216618,11.2264,212.23,212.19,26.89241932]
[1731254217002,6.5145,212.23,212.19,26.89241932]
[1731254217200,19.8624,212.25,212.19,26.89241932]
[1731254217433,19.8624,212.25,212.13,0.1]
[1731254217434,15.1509,212.25,212.21,26.89241932]
[1731254219325,6.5145,212.28,212.23,26.89241932]
[1731254219539,11.2253,212.28,212.21,26.89241932]
[1731254219739,26.89241932,212.27,212.21,26.89241932]
[1731254220027,26.89241932,212.27,212.19,26.89241932]
[1731254220223,6.5145,212.28,212.21,26.89241932]
[1731254220528,26.89241932,212.27,212.19,26.89241932]
[1731254220728,26.89241932,212.25,212.19,26.89241932]
[1731254220937,26.89241932,212.25,212.17,26.89241932]
[1731254221121,26.89241932,212.22,212.14,26.89241932]
[1731254221517,26.89241932,212.22,212.15,26.89241932]
[1731254221733,26.89241932,212.24,212.17,26.89241932]
[1731254222520,26.89241932,212.26,212.17,26.89241932]
[1731254222826,4.7109,212.27,212.19,26.89241932]
[1731254223017,4.7109,212.27,212.2,26.89241932]
[1731254223215,4.7109,212.27,212.19,26.89241932]
[1731254223216,26.89241932,212.26,212.19,26.89241932]
[1731254223532,26.89241932,212.26,212.12,16.5]
[1731254223533,26.89241932,212.25,212.17,26.89241932]
[1731254223733,4.7116,212.24,212.17,26.89241932]
[1731254223929,4.7116,212.24,212.19,26.89241932]
[1731254224111,4.7116,212.24,212.18,26.89241932]
[1731254224531,31.60401932,212.24,212.17,26.89241932]
[1731254224733,26.89241932,212.23,212.16,26.89241932]
[1731254224930,4.7116,212.24,212.13,11.7852]
[1731254224931,26.89241932,212.21,212.13,11.7852]
[1731254225117,26.89241932,212.21,212.13,26.89241932]
[1731254225532,31.60401932,212.24,212.17,26.89241932]
[1731254225832,4.7116,212.24,212.18,26.89241932]
[1731254226417,26.89241932,212.21,212.13,26.89241932]
[1731254226816,16.4907,212.24,212.13,26.89241932]
[1731254226817,26.89241932,212.2,212.13,26.89241932]
[1731254227021,26.89241932,212.21,212.13,26.89241932]
[1731254227735,4.7125,212.2,212.14,26.89241932]
[1731254227923,4.7125,212.2,212.15,26.89241932]
[1731254229034,4.7125,212.2,212.16,23.776884]
[1731254229219,4.7125,212.2,212.15,50.66930332]
[1731254230517,32.93061932,212.16,212.06,11.7885]
[1731254230718,4.714,212.13,212.07,26.89241932]
[1731254231116,4.714,212.13,212.04,4.716]
[1731254231317,4.714,212.13,212.08,26.89241932]
[1731254232723,4.714,212.13,212.09,23.776884]
[1731254233729,26.89241932,212.14,212.08,23.776884]
[1731254234135,4.7136,212.15,212.1,23.776884]
[1731254234436,26.89241932,212.14,212.1,23.776884]
[1731254234738,26.89241932,212.13,212.1,23.776884]
[1731254235040,26.89241932,212.11,212.03,26.89241932]
[1731254235342,26.89241932,212.1,212.03,26.89241932]
[1731254235637,26.89241932,212.11,212.03,26.89241932]
[1731254235841,4.7147,212.1,212.03,26.89241932]
[1731254236342,26.89241932,212.07,211.99,26.89241932]
[1731254236547,42.45951932,212.07,211.99,26.89241932]
[1731254237134,26.89241932,212.06,211.99,26.89241932]
[1731254237323,42.45951932,212.07,211.99,26.89241932]
[1731254237523,42.45951932,212.07,212.0,26.89241932]
[1731254238041,4.7156,212.06,212.0,26.89241932]
[1731254238235,15.5671,212.07,212.0,26.89241932]
[1731254238441,15.5671,212.07,211.91,23.594]
[1731254238442,20.2826,212.07,212.03,26.89241932]
[1731254238630,20.2826,212.07,212.04,23.776884]
[1731254238827,20.2826,212.07,212.02,23.776884]
[1731254240145,48.49771932,212.16,212.06,50.66930332]
[1731254240327,48.49771932,212.16,212.1,26.89241932]
[1731254240328,21.6053,212.16,212.1,26.89241932]
[1731254240527,48.49771932,212.16,212.09,26.89241932]
[1731254240835,48.49771932,212.16,212.1,23.776884]
[1731254241227,4.7137,212.15,212.09,23.776884]
[1731254241536,21.6053,212.16,212.12,26.89241932]
[1731254241734,21.6053,212.16,212.14,23.776884]
[1731254242044,26.3187,212.16,212.14,23.776884]
[1731254242847,26.3187,212.16,212.0,10.0]
[1731254242848,26.89241932,212.15,212.0,10.0]
[1731254243035,26.3187,212.16,212.04,26.89241932]
[1731254243036,26.89241932,212.11,212.04,26.89241932]
[1731254243236,38.1022,212.16,212.0,10.0]
[1731254243237,26.89241932,212.15,212.06,26.89241932]
[1731254243542,21.6053,212.16,212.1,26.89241932]
[1731254243849,21.6053,212.16,212.14,26.89241932]
[1731254244150,21.6053,212.22,212.15,23.776884]
[1731254245240,26.3175,212.22,212.15,23.776884]
[1731254245541,26.89241932,212.25,212.19,23.776884]
[1731254245931,26.89241932,212.25,212.17,23.776884]
[1731254247225,26.89241932,212.23,212.17,23.776884]
[1731254248726,4.7116,212.24,212.17,23.776884]
[1731254249037,4.7116,212.24,212.18,26.89241932]
[1731254249544,4.7113,212.26,212.22,26.89241932]
[1731254250131,4.7113,212.26,212.2,26.89241932]
[1731254251245,4.7113,212.26,212.17,23.776884]
[1731254251246,16.2448,212.27,212.22,26.89241932]
[1731254251546,27.1226,212.32,212.24,26.89241932]
[1731254251747,22.4126,212.39,212.31,26.89241932]
[1731254252625,22.4126,212.39,212.28,26.89241932]
[1731254252831,26.89241932,212.34,212.26,26.89241932]
[1731254253035,26.89241932,212.32,212.24,26.89241932]
[1731254253542,26.89241932,212.34,212.26,26.89241932]
[1731254254041,4.7096,212.33,212.26,26.89241932]
[1731254254621,26.89241932,212.36,212.28,26.89241932]
[1731254254829,4.7093,212.35,212.3,26.89241932]
[1731254255348,4.7093,212.35,212.28,26.89241932]
[1731254255841,4.7087,212.37,212.3,26.89241932]
[1731254256256,26.89241932,212.36,212.28,26.89241932]
[1731254257126,4.7087,212.37,212.28,26.89241932]
[1731254257345,31.60111932,212.37,212.28,26.89241932]
[1731254257531,31.60111932,212.37,212.3,26.89241932]
[1731254257725,26.89241932,212.35,212.26,26.89241932]
[1731254258349,31.60111932,212.37,212.28,26.89241932]
[1731254258736,31.60111932,212.37,212.3,26.89241932]
[1731254259130,22.4126,212.49,212.36,26.89241932]
[1731254259339,26.89241932,212.44,212.33,4.7095]
[1731254259530,4.7074,212.43,212.36,26.89241932]
[1731254260447,26.89241932,212.48,212.38,26.89241932]
[1731254260637,31.59881932,212.48,212.4,26.89241932]
[1731254261448,26.89241932,212.48,212.4,26.89241932]
[1731254261641,22.4126,212.54,212.47,26.89241932]
[1731254261842,22.4126,212.54,212.41,26.99241932]
[1731254261843,16.2448,212.54,212.53,26.89241932]
[1731254262027,4.7046,212.56,212.53,26.89241932]
[1731254262227,4.7042,212.58,212.53,26.89241932]
[1731254262442,4.7042,212.58,212.41,33.11151932]
[1731254262443,4.7042,212.58,212.54,26.89241932]
[1731254262646,22.4126,212.59,212.55,26.89241932]
[1731254262833,22.4126,212.59,212.57,26.89241932]
[1731254263034,4.2032,212.62,212.57,26.89241932]
[1731254263251,4.2032,212.62,212.46,0.1]
[1731254263252,4.2032,212.62,212.56,26.89241932]
[1731254263555,26.89241932,212.61,212.53,26.89241932]
[1731254263755,26.89241932,212.58,212.5,26.89241932]
[1731254264231,26.89241932,212.56,212.49,26.89241932]
[1731254264431,26.89241932,212.54,212.47,26.89241932]
[1731254264632,4.89561968,212.62,212.53,26.89241932]
[1731254264840,22.4126,212.72,212.61,26.89241932]
[1731254264841,4.7016,212.7,212.61,26.89241932]
[1731254265041,4.7016,212.7,212.68,26.89241932]
[1731254265243,4.7016,212.7,212.67,26.89241932]
[1731254265730,4.7016,212.7,212.66,26.89241932]
[1731254265930,4.7016,212.7,212.58,16.464]
[1731254266125,4.7016,212.7,212.66,26.89241932]
[1731254266544,4.7016,212.7,212.65,26.89241932]
[1731254267453,4.7016,212.7,212.52,50.51911932]
[1731254267454,26.89241932,212.67,212.6,26.89241932]
[1731254267748,26.89241932,212.69,212.61,26.89241932]
[1731254267951,31.59401932,212.7,212.62,26.89241932]
[1731254268741,26.89241932,212.69,212.61,26.89241932]
[1731254269431,26.89241932,212.66,212.59,26.89241932]
[1731254269632,26.89241932,212.64,212.56,26.89241932]
[1731254269933,26.89241932,212.64,212.57,26.89241932]
[1731254270336,26.89241932,212.65,212.58,26.89241932]
[1731254270647,4.7027,212.64,212.58,26.89241932]
[1731254271041,4.7027,212.64,212.52,31.59771932]
[1731254271042,4.7023,212.67,212.63,26.89241932]
[1731254271240,4.7023,212.67,212.62,26.89241932]
[1731254271934,26.89241932,212.65,212.54,16.4673]
[1731254272137,31.59471932,212.67,212.6,26.89241932]
[1731254272335,4.7023,212.67,212.61,26.89241932]
[1731254273441,4.7023,212.67,212.62,26.89241932]
[1731254274053,4.7023,212.67,212.61,26.89241932]
[1731254274258,4.7023,212.67,212.62,26.89241932]
[1731254275563,4.7023,212.67,212.64,26.89241932]
[1731254276159,4.7017,212.69,212.65,26.89241932]
[1731254276565,4.7017,212.69,212.66,26.89241932]
[1731254276854,4.7012,212.71,212.66,26.89241932]
[1731254277856,4.7012,212.71,212.67,26.89241932]
[1731254279338,4.7012,212.71,212.66,26.89241932]
[1731254279667,4.7012,212.71,212.67,26.89241932]
[1731254280065,4.7012,212.71,212.66,26.89241932]
[1731254281367,26.89241932,212.7,212.63,26.89241932]
[1731254282068,4.7012,212.71,212.55,16.4666]
[1731254282069,26.89241932,212.69,212.62,26.89241932]
[1731254282247,4.7014,212.7,212.64,26.89241932]
[1731254282643,31.59381932,212.7,212.63,26.89241932]
[1731254282861,4.7014,212.7,212.64,26.89241932]
[1731254283364,4.7014,212.7,212.67,26.89241932]
[1731254283545,4.7014,212.7,212.68,26.89241932]
[1731254283745,4.7014,212.7,212.67,26.89241932]
[1731254284252,22.4126,212.72,212.68,26.89241932]
[1731254284457,4.7011,212.72,212.7,26.89241932]
[1731254284963,4.7011,212.72,212.69,26.89241932]
[1731254285263,31.59351932,212.72,212.65,26.89241932]
[1731254285569,31.59351932,212.72,212.56,28.225]
[1731254285570,26.89241932,212.71,212.64,26.89241932]
[1731254285867,26.89241932,212.67,212.6,26.89241932]
[1731254286068,26.89241932,212.67,212.57,11.7603]
[1731254286367,26.89241932,212.67,212.6,26.89241932]
[1731254286555,26.89241932,212.68,212.61,26.89241932]
[1731254286862,4.7021,212.67,212.61,26.89241932]
[1731254287061,31.59451932,212.67,212.6,26.89241932]
[1731254288068,26.89241932,212.61,212.53,11.763]
[1731254288248,26.89241932,212.59,212.52,26.89241932]
[1731254288449,26.89241932,212.6,212.53,26.89241932]
[1731254289566,4.7038,212.59,212.53,26.89241932]
[1731254290672,26.89241932,212.58,212.51,26.89241932]
[1731254290862,26.89241932,212.56,212.49,26.89241932]
[1731254291365,26.89241932,212.57,212.5,26.89241932]
[1731254291754,4.7045,212.56,212.5,26.89241932]
[1731254291955,4.7045,212.56,212.51,26.89241932]
[1731254292359,4.7045,212.56,212.47,4.7063]
[1731254292360,4.7042,212.58,212.52,26.89241932]
[1731254292565,26.89241932,212.62,212.54,26.89241932]
[1731254292765,21.8722,212.77,212.63,0.1]
[1731254292970,33.11111932,212.82,212.65,0.1]
[1731254293276,8.05112937,212.9,212.71,0.1]
[1731254293481,6.2187,212.93,212.85,26.89241932]
[1731254293482,4.6965,212.92,212.85,26.89241932]
[1731254294172,26.89241932,212.91,212.78,4.6994]
[1731254294373,4.6965,212.92,212.84,26.89241932]
[1731254295560,26.89241932,212.91,212.84,26.89241932]
[1731254295761,26.89241932,212.85,212.74,26.89241932]
[1731254295960,26.89241932,212.82,212.74,26.89241932]
[1731254296499,16.4379,212.92,212.72,16.4532]
[1731254296500,26.89241932,212.8,212.72,38.64461932]
[1731254296653,26.89241932,212.84,212.76,26.89241932]
[1731254297674,26.89241932,212.82,212.73,4.7007]
[1731254297851,26.89241932,212.82,212.74,26.89241932]
[1731254298466,26.89241932,212.8,212.72,38.64461932]
[1731254299855,26.89241932,212.78,212.7,26.89241932]
[1731254300254,4.6979,212.86,212.77,26.89241932]
[1731254300584,39.2352,212.94,212.82,26.89241932]
[1731254300585,4.6975,212.88,212.82,26.89241932]
[1731254301075,26.89241932,212.87,212.8,26.89241932]
[1731254301280,4.6971,212.9,212.84,26.89241932]
[1731254301462,6.2187,212.99,212.89,26.89241932]
[1731254301667,6.2187,212.99,212.92,26.89241932]
[1731254301978,31.77740229,212.98,212.9,26.89241932]
[1731254302176,4.88498297,212.98,212.92,26.89241932]
[1731254302775,4.88498297,212.98,212.9,26.89241932]
[1731254302970,4.88498297,212.98,212.84,16.4441]
[1731254302971,26.89241932,212.97,212.88,26.89241932]
[1731254303573,26.89241932,212.97,212.9,26.89241932]
[1731254303778,4.6953,212.98,212.9,26.89241932]
[1731254304083,9.58226931,212.98,212.9,26.89241932]
[1731254304572,4.6948,213.0,212.92,26.89241932]
[1731254304787,26.89241932,212.99,212.92,26.89241932]
[1731254305576,31.58751932,212.99,212.92,26.89241932]
[1731254306182,4.88635213,212.98,212.92,26.89241932]
[1731254306559,26.89241932,212.97,212.9,26.89241932]
[1731254307372,26.89241932,213.01,212.93,26.89241932]
[1731254307575,26.89241932,212.97,212.89,26.89241932]
[1731254308760,4.6957,212.96,212.89,26.89241932]
[1731254309868,26.89241932,212.93,212.85,26.89241932]
[1731254310784,26.89241932,212.87,212.78,11.7492]
[1731254311082,26.89241932,212.9,212.83,26.89241932]
[1731254311259,26.89241932,212.9,212.82,26.89241932]
[1731254311464,26.89241932,212.87,212.8,26.89241932]
[1731254311659,4.6964,212.93,212.86,26.89241932]
[1731254311877,4.6964,212.93,212.87,26.89241932]
[1731254312379,26.89241932,212.91,212.78,11.7492]
[1731254312680,26.89241932,212.91,212.83,26.89241932]
[1731254312882,4.6964,212.93,212.78,11.7492]
[1731254312883,26.89241932,212.88,212.8,4.6992]
[1731254313086,4.6967,212.92,212.87,26.89241932]
[1731254313264,4.6967,212.92,212.89,26.89241932]
[1731254313774,4.6954,212.97,212.91,26.89241932]
[1731254314473,4.6954,212.97,212.89,26.89241932]
[1731254314780,4.6954,212.97,212.93,26.89241932]
[1731254314981,4.6954,212.97,212.91,26.89241932]
[1731254315196,31.58741932,213.0,212.91,26.89241932]
[1731254315684,26.89241932,212.98,212.89,26.89241932]
[1731254315911,26.89241932,212.9,212.77,26.89241932]
[1731254316177,26.89241932,212.86,212.77,45.66023532]
[1731254316563,26.89241932,212.86,212.77,26.89241932]
[1731254316760,4.6985,212.83,212.75,26.89241932]
[1731254317264,26.89241932,212.82,212.75,26.89241932]
[1731254317468,26.89241932,212.82,212.73,26.89241932]
[1731254317868,26.89241932,212.8,212.73,45.66367332]
[1731254318178,4.6985,212.83,212.74,26.89241932]
[1731254318389,4.6985,212.83,212.76,26.89241932]
[1731254319479,26.89241932,212.84,212.76,31.59251932]
[1731254319788,4.6982,212.85,212.78,26.89241932]
[1731254320764,26.89241932,212.84,212.76,26.89241932]
[1731254321297,4.6982,212.85,212.63,8.03057731]
[1731254321298,26.89241932,212.78,212.63,8.03057731]
[1731254321585,26.89241932,212.7,212.61,26.89241932]
[1731254321879,6.5299,212.82,212.58,18.882218]
[1731254321880,26.89241932,212.68,212.59,26.89241932]
[1731254322079,26.89241932,212.66,212.57,26.89241932]
[1731254322284,26.89241932,212.74,212.55,38.65421932]
[1731254322285,26.89241932,212.64,212.55,38.65421932]
[1731254322580,26.89241932,212.74,212.57,26.89241932]
[1731254322581,26.89241932,212.66,212.57,26.89241932]
[1731254322782,4.7025,212.65,212.57,26.89241932]
[1731254323778,26.89241932,212.64,212.55,38.65421932]
[1731254323966,4.7025,212.65,212.53,4.8051]
[1731254323967,26.89241932,212.62,212.53,26.89241932]
[1731254324369,26.89241932,212.6,212.51,31.59791932]
[1731254324585,26.89241932,212.62,212.53,26.89241932]
[1731254325184,4.7034,212.61,212.53,26.89241932]
[1731254325376,4.7031,212.63,212.56,26.89241932]
[1731254325579,26.89241932,212.66,212.58,26.89241932]
[1731254325889,26.89241932,212.68,212.6,26.89241932]
[1731254326066,26.89241932,212.66,212.58,26.89241932]
[1731254326273,26.89241932,212.66,212.53,21.45599448]
[1731254326274,26.89241932,212.66,212.56,26.89241932]
[1731254326588,4.7017,212.69,212.54,26.89241932]
[1731254326589,26.89241932,212.62,212.54,26.89241932]
[1731254326770,26.89241932,212.6,212.53,11.763]
[1731254327192,26.89241932,212.58,212.53,11.763]
[1731254327486,26.89241932,212.56,212.49,23.49564]
[1731254327787,26.89241932,212.54,212.48,11.7657]
[1731254328284,26.89241932,212.52,212.45,0.1]
[1731254328481,26.89241932,212.52,212.44,31.59941932]
[1731254328867,26.89241932,212.52,212.44,4.707]
[1731254329076,26.89241932,212.5,212.43,35.272689]
[1731254329266,26.89241932,212.5,212.43,16.4759]
[1731254329473,26.89241932,212.48,212.43,11.7685]
[1731254329671,26.89241932,212.46,212.39,18.800141]
[1731254329988,26.89241932,212.46,212.38,31.60081932]
[1731254330395,26.89241932,212.44,212.38,31.60081932]
[1731254330567,26.89241932,212.44,212.38,4.7084]
[1731254330775,26.89241932,212.44,212.37,11.7715]
[1731254331370,26.89241932,212.42,212.34,26.89241932]
[1731254331581,26.89241932,212.42,212.34,31.60161932]
[1731254332079,26.89241932,212.46,212.38,26.89241932]
[1731254332872,26.89241932,212.45,212.37,26.89241932]
[1731254333383,4.7056,212.51,212.34,11.7735]
[1731254333384,26.89241932,212.48,212.41,26.89241932]
[1731254333692,26.89241932,212.49,212.41,26.89241932]
[1731254334007,26.89241932,212.48,212.41,26.89241932]
[1731254334986,31.59871932,212.48,212.41,26.89241932]
[1731254335375,4.7053,212.53,212.47,26.89241932]
[1731254335776,4.7053,212.53,212.46,26.89241932]
[1731254335984,4.7047,212.56,212.47,26.89241932]
[1731254336173,26.89241932,212.54,212.46,26.89241932]
[1731254336372,26.89241932,212.48,212.41,26.89241932]
[1731254336598,26.89241932,212.46,212.39,26.89241932]
[1731254336771,26.89241932,212.46,212.38,26.89241932]
[1731254336975,26.89241932,212.46,212.39,26.89241932]
[1731254337172,31.59931932,212.46,212.38,26.89241932]
[1731254337377,26.89241932,212.45,212.37,26.89241932]
[1731254337977,26.89241932,212.44,212.36,43.37371932]
[1731254338292,26.89241932,212.43,212.36,38.66481932]
[1731254338477,4.7069,212.46,212.36,38.66481932]
[1731254338796,26.89241932,212.43,212.36,38.66481932]
[1731254339583,16.89241932,212.43,212.36,38.66481932]
[1731254339984,26.89241932,212.44,212.36,38.66481932]
[1731254340181,26.89241932,212.46,212.38,26.89241932]
[1731254341395,26.89241932,212.48,212.41,26.89241932]
[1731254341594,31.59881932,212.48,212.4,26.89241932]
[1731254341780,26.89241932,212.47,212.39,26.89241932]
[1731254342395,26.89241932,212.47,212.4,26.89241932]
[1731254342779,31.59881932,212.48,212.41,26.89241932]
[1731254343899,31.59881932,212.48,212.4,26.89241932]
[1731254344390,26.89241932,212.47,212.4,26.89241932]
[1731254344894,26.89241932,212.41,212.33,38.66631932]
[1731254345091,26.89241932,212.4,212.32,26.89241932]
[1731254345602,26.89241932,212.41,212.33,26.89241932]
[1731254345977,26.89241932,212.41,212.28,11.7768]
[1731254346188,26.89241932,212.36,212.29,26.89241932]
[1731254346388,26.89241932,212.36,212.28,26.89241932]
[1731254346590,26.89241932,212.35,212.27,27.71067064]
[1731254346781,26.89241932,212.35,212.27,26.89241932]
[1731254346982,31.60151932,212.36,212.29,26.89241932]
[1731254347293,31.60151932,212.36,212.21,0.2]
[1731254347294,26.89241932,212.32,212.25,26.89241932]
[1731254347600,26.89241932,212.3,212.23,26.89241932]
[1731254347800,26.89241932,212.3,212.22,26.89241932]
[1731254348394,26.89241932,212.29,212.22,26.89241932]
[1731254348783,26.89241932,212.36,212.28,26.89241932]
[1731254349100,26.89241932,212.32,212.25,26.89241932]
[1731254350294,31.60241932,212.32,212.25,26.89241932]
[1731254350684,26.89241932,212.31,212.24,26.89241932]
[1731254350899,31.60241932,212.32,212.25,26.89241932]
[1731254351196,26.89241932,212.31,212.24,26.89241932]
[1731254351388,4.71,212.32,212.26,26.89241932]
[1731254351589,26.89241932,212.35,212.28,26.89241932]
[1731254351896,26.89241932,212.36,212.29,26.89241932]
[1731254352197,26.89241932,212.35,212.28,26.89241932]
[1731254352401,26.89241932,212.35,212.23,0.1]
[1731254352402,26.89241932,212.34,212.27,26.89241932]
[1731254352693,26.89241932,212.31,212.24,26.89241932]
[1731254352893,26.89241932,212.32,212.25,26.89241932]
[1731254353200,16.479,212.39,212.25,26.89241932]
[1731254353201,26.89241932,212.33,212.25,26.89241932]
[1731254353395,26.89241932,212.34,212.27,26.89241932]
[1731254353600,4.7097,212.33,212.27,26.89241932]
[1731254353981,4.7097,212.33,212.28,26.89241932]
[1731254354185,4.7097,212.33,212.24,4.7115]
[1731254354484,26.89241932,212.36,212.29,26.89241932]
[1731254354685,4.7093,212.35,212.29,26.89241932]
[1731254354886,26.89241932,212.34,212.27,26.89241932]
[1731254355082,26.89241932,212.34,212.28,23.776884]
[1731254355282,4.7087,212.37,212.3,26.89241932]
[1731254355493,31.60111932,212.37,212.3,26.89241932]
[1731254355697,26.89241932,212.35,212.31,23.776884]
[1731254356186,26.89241932,212.35,212.29,23.776884]
[1731254356384,26.89241932,212.36,212.29,23.776884]
[1731254357605,26.89241932,212.39,212.32,26.89241932]
[1731254357896,26.89241932,212.36,212.33,23.776884]
[1731254358803,26.89241932,212.35,212.33,23.776884]
[1731254359395,26.89241932,212.34,212.33,23.776884]
[1731254360311,26.89241932,212.34,212.25,26.89241932]
[1731254360507,26.89241932,212.32,212.25,26.89241932]
[1731254361188,4.71,212.31,212.25,26.89241932]
[1731254361588,4.71,212.31,212.26,23.776884]
[1731254362487,26.89241932,212.31,212.24,23.776884]
[1731254362703,26.89241932,212.31,212.24,50.66930332]
[1731254363095,26.89241932,212.32,212.25,26.89241932]
[1731254363406,26.89241932,212.32,212.26,23.776884]
[1731254363589,4.71,212.31,212.26,23.776884]
[1731254364192,4.71,212.31,212.27,23.776884]
[1731254364806,26.89241932,212.32,212.26,23.776884]
[1731254365184,26.89241932,212.32,212.24,50.66930332]
[1731254365390,26.89241932,212.31,212.24,50.66930332]
[1731254365905,4.7103,212.3,212.24,50.66930332]
[1731254366493,26.89241932,212.29,212.23,23.776884]
[1731254366689,26.89241932,212.29,212.19,11.7814]
[1731254366903,26.89241932,212.29,212.22,26.89241932]
[1731254367105,26.89241932,212.26,212.19,38.67381932]
[1731254367411,26.89241932,212.23,212.17,26.89241932]
[1731254367602,26.89241932,212.23,212.16,26.89241932]
[1731254368104,26.89241932,212.19,212.12,4.7142]
[1731254368319,26.89241932,212.22,212.15,26.89241932]
[1731254369313,31.60471932,212.21,212.14,26.89241932]
[1731254370803,4.7123,212.21,212.15,50.66930332]
[1731254372210,4.7121,212.22,212.16,26.89241932]
[1731254372517,6.0736,212.28,212.22,23.776884]
[1731254372715,6.0736,212.28,212.22,50.66930332]
[1731254373315,26.89241932,212.3,212.23,26.89241932]
[1731254373522,11.7752,212.31,212.22,23.776884]
[1731254373523,31.60291932,212.29,212.24,23.776884]
[1731254373706,31.60291932,212.29,212.23,23.776884]
[1731254375112,4.7105,212.29,212.23,23.776884]
[1731254375316,4.7103,212.3,212.23,23.776884]
[1731254375525,31.60271932,212.3,212.23,26.89241932]
[1731254375704,4.7103,212.3,212.23,26.89241932]
[1731254375904,31.60271932,212.3,212.23,26.89241932]
[1731254376499,4.7103,212.3,212.23,26.89241932]
[1731254376896,31.60271932,212.3,212.23,26.89241932]
[1731254377497,31.60271932,212.3,212.0,23.72301804]
[1731254377498,26.89241932,212.29,212.21,26.89241932]
[1731254377702,26.89241932,212.27,212.2,26.89241932]
[1731254378128,4.7103,212.3,212.17,4.7132]
[1731254378129,26.89241932,212.25,212.18,26.89241932]
[1731254378506,26.89241932,212.23,212.15,16.4975]
[1731254378703,26.89241932,212.23,212.16,26.89241932]
[1731254379048,26.89241932,212.24,212.17,26.89241932]
[1731254380102,4.7118,212.23,212.17,26.89241932]
[1731254380303,31.60421932,212.23,212.16,31.60571932]
[1731254380525,4.7118,212.23,212.17,26.89241932]
[1731254384425,31.60421932,212.23,212.16,26.89241932]
[1731254384631,4.7118,212.23,212.18,26.89241932]
[1731254384928,26.89241932,212.26,212.18,26.89241932]
[1731254385502,31.60291932,212.29,212.21,26.89241932]
[1731254385708,26.89241932,212.24,212.16,26.89241932]
[1731254386520,4.7116,212.24,212.17,31.60561932]
[1731254386904,26.89241932,212.26,212.19,26.89241932]
[1731254387114,26.89241932,212.27,212.19,26.89241932]
[1731254387514,26.89241932,212.28,212.21,26.89241932]
[1731254387712,26.89241932,212.28,212.2,26.89241932]
[1731254388227,4.7109,212.27,212.2,31.60481932]
[1731254388414,4.7109,212.27,212.21,26.89241932]
[1731254388811,4.7109,212.27,212.2,4.7124]
[1731254389120,4.7109,212.27,212.17,11.783]
[1731254389121,26.89241932,212.26,212.19,26.89241932]
[1731254389436,26.89241932,212.26,212.18,4.7128]
[1731254389614,26.89241932,212.24,212.17,11.783]
[1731254389930,26.89241932,212.24,212.17,16.4962]
[1731254390309,26.89241932,212.24,212.17,11.783]
[1731254390707,26.89241932,212.25,212.18,26.89241932]
[1731254391224,26.89241932,212.26,212.19,26.89241932]
[1731254391432,26.89241932,212.26,212.18,26.89241932]